fUSD/lending_fUSD_20260506
["ID","MTS","AMOUNT","RATE_DAILY","PERIOD"]
[421629681,1777999036000,-176.92,0.00024658,2]
[421629680,1777999036000,-206.79,0.00024658,2]
[421629684,1777999038000,162.23,0.00024658,2]
[421629686,1777999090000,163.73,0.00024658,2]
[421629687,1777999108000,239.79,0.00024658,2]
[421629688,1777999123000,530.0,0.00022,2]
[421629689,1777999129000,150.0,0.00024658,2]
[421629691,1777999148000,2862.162476,7.945e-05,2]
[421629692,1777999157000,6218.057524,0.00025,2]
[421629693,1777999157000,3781.942476,0.00025,2]
[421629697,1777999174000,6218.067524,0.00025,2]
[421629698,1777999174000,3781.932476,0.00025,2]
[421629699,1777999179000,-5750.0,0.00025486,2]
[421629700,1777999209000,6218.077524,0.00025,2]
[421629709,1777999298000,150.0,0.00024658,2]
[421629712,1777999320000,708.23,0.000218,2]
[421629714,1777999345000,500.0,0.000249,2]
[421629720,1777999443000,165.36,0.00024929,2]
[421629721,1777999468000,150.0,0.00024658,2]
[421629722,1777999483000,530.0,0.00022,2]
[421629723,1777999503000,500.0,0.000249,2]
[421629724,1777999557000,-251.49479482,0.0002547,2]
[421629726,1777999558000,-1200.0,0.0002547,2]
[421629725,1777999558000,-48.50520518,0.0002547,2]
[421629727,1777999558000,-41.21883167,0.00025471,2]
[421629735,1777999629000,-6.3666918,0.00025471,2]
[421629734,1777999629000,-200.0,0.00025456,2]
[421629736,1777999637000,-185.98518341,0.00025456,2]
[421629737,1777999647000,-314.01481659,0.00025456,2]
[421629739,1777999647000,-42.66316602,0.00025456,2]
[421629738,1777999647000,-151.0,0.00025456,2]
[421629769,1777999653000,-151.0,0.00025456,2]
[421629740,1777999653000,-457.33683398,0.00025456,2]
[421629741,1777999653000,-151.0,0.00025456,2]
[421629742,1777999653000,-500.0,0.00025456,2]
[421629743,1777999653000,-151.0,0.00025456,2]
[421629745,1777999653000,-151.0,0.00025456,2]
[421629747,1777999653000,-151.0,0.00025456,2]
[421629746,1777999653000,-500.0,0.00025456,2]
[421629744,1777999653000,-500.0,0.00025456,2]
[421629748,1777999653000,-500.0,0.00025456,2]
[421629749,1777999653000,-151.0,0.00025456,2]
[421629752,1777999653000,-151.0,0.00025456,2]
[421629751,1777999653000,-500.0,0.00025456,2]
[421629753,1777999653000,-500.0,0.00025456,2]
[421629754,1777999653000,-151.0,0.00025456,2]
[421629750,1777999653000,-151.0,0.00025456,2]
[421629756,1777999653000,-500.0,0.00025456,2]
[421629757,1777999653000,-151.0,0.00025456,2]
[421629767,1777999653000,-151.0,0.00025456,2]
[421629764,1777999653000,-151.0,0.00025456,2]
[421629766,1777999653000,-151.0,0.00025456,2]
[421629765,1777999653000,-500.0,0.00025456,2]
[421629763,1777999653000,-151.0,0.00025456,2]
[421629770,1777999653000,-125.1567523,0.00025456,2]
[421629762,1777999653000,-500.0,0.00025456,2]
[421629759,1777999653000,-500.0,0.00025456,2]
[421629755,1777999653000,-151.0,0.00025456,2]
[421629760,1777999653000,-151.0,0.00025456,2]
[421629768,1777999653000,-151.0,0.00025456,2]
[421629761,1777999653000,-151.0,0.00025456,2]
[421629758,1777999653000,-151.0,0.00025456,2]
[421629771,1777999693000,521.0,0.00022,2]
[421629773,1777999746000,-550.0958246,0.00025055,2]
[421629774,1777999756000,-327.23145569,0.00025055,2]
[421629775,1777999760000,-21714.84724194,0.00025055,2]
[421629776,1777999768000,168.78,0.00022581,2]
[421629777,1777999789000,696.42,0.00013274,2]
[421629782,1777999790000,696.42,0.00016767,2]
[421629781,1777999790000,696.42,0.00016069,2]
[421629780,1777999790000,696.42,0.0001537,2]
[421629779,1777999790000,696.42,0.00014671,2]
[421629778,1777999790000,696.42,0.00013973,2]
[421629783,1777999791000,696.42,0.00017466,2]
[421629784,1777999791000,696.42,0.00018165,2]
[421629785,1777999791000,696.42,0.00018863,2]
[421629790,1777999792000,696.42,0.00022356,2]
[421629789,1777999792000,696.42,0.00021658,2]
[421629788,1777999792000,696.42,0.00020959,2]
[421629787,1777999792000,696.42,0.00020261,2]
[421629786,1777999792000,696.42,0.00019562,2]
[421629794,1777999793000,696.42,0.00024452,2]
[421629793,1777999793000,696.42,0.00023754,2]
[421629791,1777999793000,250.13,0.00023055,2]
[421629792,1777999793000,446.29,0.00023055,2]
[421629820,1777999831000,-819.1793169,0.00025055,2]
[421629818,1777999831000,-2003.26428485,0.00025055,2]
[421629819,1777999831000,-280.72,0.00025055,2]
[421629817,1777999831000,-505.72596384,0.00025055,2]
[421629815,1777999831000,-610.44814184,0.00025055,2]
[421629814,1777999831000,-326.848,0.00025055,2]
[421629809,1777999831000,-598.49407841,0.00025054,2]
[421629812,1777999831000,-13407.93585733,0.00025055,2]
[421629808,1777999831000,-300.0,0.00025054,2]
[421629811,1777999831000,-110249.06388864,0.00025055,2]
[421629821,1777999831000,-3476.22377999,0.00025055,2]
[421629810,1777999831000,-601.50592159,0.00025054,2]
[421629807,1777999831000,-300.0,0.00025054,2]
[421629813,1777999831000,-300.92886119,0.00025055,2]
[421629822,1777999831000,-454.4361659,0.00025055,2]
[421629816,1777999831000,-551.21250411,0.00025055,2]
[421629823,1777999831000,-49420.12910438,0.00025055,2]
[421629824,1777999831000,-696.42,0.00025151,2]
[421629832,1777999831000,-500.0,0.00025456,2]
[421629835,1777999831000,-500.0,0.00025456,2]
[421629837,1777999831000,-500.0,0.00025456,2]
[421629834,1777999831000,-500.0,0.00025456,2]
[421629838,1777999831000,-1386.78395259,0.00025456,2]
[421629833,1777999831000,-500.0,0.00025456,2]
[421629839,1777999831000,-1000.0,0.00025485,2]
[421629836,1777999831000,-500.0,0.00025456,2]
[421629829,1777999831000,-500.0,0.00025456,2]
[421629825,1777999831000,-153.7358,0.0002537,2]
[421629831,1777999831000,-500.0,0.00025456,2]
[421629828,1777999831000,-500.0,0.00025456,2]
[421629826,1777999831000,-3135.73446375,0.00025456,2]
[421629830,1777999831000,-500.0,0.00025456,2]
[421629827,1777999831000,-48.46953948,0.00025456,2]
[421629881,1777999832000,-620.67,0.00026712,2]
[421629868,1777999832000,-5000.0,0.00025994,2]
[421629876,1777999832000,-696.42,0.00026548,2]
[421629864,1777999832000,-500.0,0.00025993,2]
[421629877,1777999832000,-200.0,0.00026552,2]
[421629867,1777999832000,-610.35438042,0.00025993,2]
[421629872,1777999832000,-200.0,0.00026004,2]
[421629870,1777999832000,-1096.26,0.00026,2]
[421629879,1777999832000,-1491.30447232,0.00026552,2]
[421629874,1777999832000,-1438.09495884,0.00026004,2]
[421629902,1777999832000,-885.22,0.00027718,2]
[421629885,1777999832000,-1546.48273779,0.000271,2]
[421629883,1777999832000,-200.0,0.000271,2]
[421629887,1777999832000,-420.0,0.0002714,2]
[421629889,1777999832000,-1680.0,0.00027263,2]
[421629899,1777999832000,-620.67,0.00027666,2]
[421629904,1777999832000,-251.93,0.00027718,120]
[421629897,1777999832000,-1603.70259909,0.00027648,2]
[421629895,1777999832000,-200.0,0.00027648,2]
[421629862,1777999832000,-500.0,0.00025993,2]
[421629875,1777999832000,-166.66,0.00026425,30]
[421629861,1777999832000,-500.0,0.00025993,2]
[421629850,1777999832000,-500.0,0.00025993,2]
[421629856,1777999832000,-500.0,0.00025993,2]
[421629891,1777999832000,-386.53,0.00027573,2]
[421629841,1777999832000,-200.53352621,0.00025486,2]
[421629852,1777999832000,-500.0,0.00025993,2]
[421629851,1777999832000,-188.91881496,0.00025993,2]
[421629840,1777999832000,-151.0,0.00025486,2]
[421629843,1777999832000,-620.67,0.00025758,2]
[421629849,1777999832000,-500.0,0.00025993,2]
[421629842,1777999832000,-154.09,0.00025486,2]
[421629848,1777999832000,-500.0,0.00025993,2]
[421629863,1777999832000,-500.0,0.00025993,2]
[421629847,1777999832000,-696.42,0.0002585,2]
[421629845,1777999832000,-1086.7,0.00025786,2]
[421629844,1777999832000,-155.86,0.00025786,2]
[421629865,1777999832000,-500.0,0.00025993,2]
[421629857,1777999832000,-500.0,0.00025993,2]
[421629866,1777999832000,-500.0,0.00025993,2]
[421629859,1777999832000,-500.0,0.00025993,2]
[421629854,1777999832000,-500.0,0.00025993,2]
[421629860,1777999832000,-500.0,0.00025993,2]
[421629858,1777999832000,-500.0,0.00025993,2]
[421629846,1777999832000,-2623.38,0.00025786,2]
[421629893,1777999832000,-1693.61548808,0.00027603,2]
[421629956,1777999832000,-1693.61548801,0.00029727,2]
[421629910,1777999832000,-157.71,0.00028128,120]
[421629964,1777999832000,-200.0,0.00030267,2]
[421629962,1777999832000,-152.0,0.00030006,7]
[421629960,1777999832000,-676.0,0.0003,2]
[421629966,1777999832000,-1923.16973117,0.00030388,2]
[421629968,1777999832000,-620.67,0.00030528,2]
[421629970,1777999832000,-9965.28,0.0003062,2]
[421629972,1777999832000,-9999.99,0.0003062,2]
[421629975,1777999832000,-432.79,0.0003062,2]
[421629979,1777999832000,-999.99,0.0003062,2]
[421629946,1777999832000,-1788.38122651,0.00029292,2]
[421629990,1777999832000,-12154.2,0.0003062,2]
[421629981,1777999832000,-7840.61,0.0003062,10]
[421629983,1777999832000,-25479.34,0.0003062,2]
[421629985,1777999832000,-9999.99,0.0003062,2]
[421629992,1777999832000,-1968.27464724,0.0003062,2]
[421629994,1777999832000,-1713.47845465,0.0003062,2]
[421629997,1777999832000,-367.5852002,0.0003062,2]
[421629996,1777999832000,-1306.980303,0.0003062,2]
[421629995,1777999832000,-305.87152824,0.0003062,2]
[421629908,1777999832000,-55494.0,0.000278,2]
[421629987,1777999832000,-4999.99,0.0003062,2]
[421629958,1777999832000,-1854.55133189,0.0002984,2]
[421629977,1777999832000,-9999.99,0.0003062,2]
[421629950,1777999832000,-620.67,0.00029574,2]
[421629914,1777999832000,-200.0,0.00028196,2]
[421629916,1777999832000,-1663.03959526,0.00028196,2]
[421629920,1777999832000,-184.63,0.00028357,2]
[421629931,1777999832000,-154.09,0.00028672,2]
[421629929,1777999832000,-620.67,0.0002862,2]
[421629918,1777999832000,-5529.0,0.000283,3]
[421629922,1777999832000,-4795.24,0.00028461,2]
[421629927,1777999832000,-202.54,0.00028542,2]
[421629935,1777999832000,-200.0,0.00028744,2]
[421629933,1777999832000,-231.89,0.00028734,2]
[421629912,1777999832000,-500.0,0.00028195,2]
[421629924,1777999832000,-166.64,0.00028496,2]
[421629937,1777999832000,-1724.57206028,0.00028744,2]
[421629941,1777999832000,-1096.26,0.0002905,2]
[421629939,1777999832000,-5529.0,0.000288,5]
[421629954,1777999832000,-166.64,0.00029672,2]
[421629998,1777999832000,-392.15553023,0.0003062,2]
[421629944,1777999832000,-349.82327691,0.00029292,2]
[421629952,1777999832000,-2351.0,0.00029667,2]
[421629906,1777999832000,-2000.0,0.00027799,2]
[421629948,1777999832000,-587.0,0.000294,2]
[421629999,1777999834000,260.56,0.00024658,2]
[421630016,1777999837000,-500.0,0.00030906,2]
[421630004,1777999837000,-173.7,0.00028186,2]
[421630003,1777999837000,-500.0,0.000271,2]
[421630005,1777999837000,-1141.54433644,0.0003062,2]
[421630006,1777999837000,-54494.69416956,0.00030807,2]
[421630018,1777999837000,-130197.38901525,0.00030907,2]
[421630014,1777999837000,-572.041397,0.00030906,2]
[421630010,1777999837000,-182.70446885,0.00030906,2]
[421630008,1777999837000,-9752.44168726,0.00030834,2]
[421630013,1777999837000,-500.0,0.00030906,2]
[421630007,1777999837000,-42146.00032977,0.00030807,2]
[421630012,1777999837000,-229.04702701,0.00030906,2]
[421630011,1777999837000,-500.0,0.00030906,2]
[421630015,1777999837000,-227.51131531,0.00030906,2]
[421630017,1777999837000,-500.0,0.00030906,2]
[421630009,1777999837000,-166.64,0.00030848,2]
[421630022,1777999838000,-10146.76425145,0.00030907,2]
[421630021,1777999838000,-2761.817968,0.00030907,2]
[421630019,1777999838000,-942.14627418,0.00030907,2]
[421630020,1777999838000,-606.81999954,0.00030907,2]
[421630023,1777999838000,-1473.33464521,0.00030907,2]
[421630029,1777999838000,-890.38867974,0.00030907,2]
[421630025,1777999838000,-481.73292,0.00030907,2]
[421630027,1777999838000,-554.54889005,0.00030907,2]
[421630026,1777999838000,-4735.94355348,0.00030907,2]
[421630028,1777999838000,-1087.60547802,0.00030907,2]
[421630048,1777999838000,-939.05484292,0.00030907,2]
[421630024,1777999838000,-3466.8443423,0.00030907,2]
[421630090,1777999840000,-1096.26,0.000321,30]
[421630095,1777999840000,-1500.0,0.00032568,5]
[421630088,1777999840000,-9752.4416872,0.00032064,2]
[421630087,1777999840000,-166.64,0.00032023,2]
[421630080,1777999840000,-235.0239769,0.00032,120]
[421630084,1777999840000,-1000.0,0.00032021,5]
[421630085,1777999840000,-501.27995319,0.00032021,5]
[421630082,1777999840000,-1000.0,0.00032021,5]
[421630081,1777999840000,-164.66922633,0.00032,120]
[421630083,1777999840000,-1000.0,0.00032021,5]
[421630093,1777999840000,-620.67,0.00032436,2]
[421630096,1777999840000,-644.4672729,0.00032568,5]
[421630097,1777999840000,-1011.35710305,0.00032568,5]
[421630089,1777999840000,-1502.57721683,0.00032099,2]
[421630094,1777999840000,-176.96,0.00032529,2]
[421630091,1777999840000,-212.0,0.00032278,30]
[421630098,1777999840000,-509.45410883,0.00032568,5]
[421630103,1777999840000,-203.374975,0.00033318,7]
[421630105,1777999840000,-203.374975,0.00033318,7]
[421630100,1777999840000,-166.64,0.00033199,2]
[421630101,1777999840000,-212.0,0.00033278,30]
[421630106,1777999840000,-151.0,0.00033318,7]
[421630102,1777999840000,-9752.4416872,0.00033293,2]
[421630092,1777999840000,-3292.0,0.00032283,3]
[421630079,1777999840000,-1966.69440312,0.00032,120]
[421630075,1777999840000,-154.09,0.00031858,2]
[421630078,1777999840000,-194.75165934,0.000319,2]
[421630104,1777999840000,-151.0,0.00033318,7]
[421630054,1777999840000,-76618.91913986,0.00030907,2]
[421630055,1777999840000,-500.0,0.00030934,2]
[421630062,1777999840000,-500.0,0.00031473,5]
[421630053,1777999840000,-816.73,0.00030824,10]
[421630057,1777999840000,-169.0,0.00031274,30]
[421630056,1777999840000,-1994.32701123,0.00030936,2]
[421630059,1777999840000,-212.0,0.00031278,30]
[421630061,1777999840000,-200.0,0.00031289,30]
[421630060,1777999840000,-1400.0,0.00031289,2]
[421630063,1777999840000,-500.0,0.00031473,5]
[421630086,1777999840000,-1000.0,0.00032021,5]
[421630065,1777999840000,-500.0,0.00031473,5]
[421630068,1777999840000,-500.0,0.00031473,5]
[421630074,1777999840000,-1693.61548801,0.0003185,2]
[421630072,1777999840000,-176.96,0.00031736,2]
[421630067,1777999840000,-500.75167169,0.00031473,5]
[421630073,1777999840000,-193.0,0.00031849,2]
[421630064,1777999840000,-500.0,0.00031473,2]
[421630069,1777999840000,-500.0,0.00031473,5]
[421630070,1777999840000,-620.67,0.00031482,2]
[421630071,1777999840000,-162.51838138,0.00031494,2]
[421630076,1777999840000,-194.75165937,0.000319,2]
[421630077,1777999840000,-194.75165934,0.000319,2]
[421630066,1777999840000,-500.0,0.00031473,5]
[421630099,1777999840000,-1966.69440312,0.00033,120]
[421630058,1777999840000,-2000.0,0.00031274,2]
[421630109,1777999840000,-176.96,0.00033323,2]
[421630138,1777999840000,-203.374975,0.00035547,7]
[421630137,1777999840000,-151.0,0.00035547,7]
[421630143,1777999840000,-500.0,0.00035573,5]
[421630145,1777999840000,-5375.27,0.000356,7]
[421630147,1777999840000,-636.71858893,0.00035616,7]
[421630136,1777999840000,-203.374975,0.00035547,7]
[421630146,1777999840000,-500.0,0.00035616,7]
[421630144,1777999840000,-500.0,0.00035573,5]
[421630142,1777999840000,-500.0,0.00035573,5]
[421630150,1777999840000,-150.0,0.00035753,7]
[421630151,1777999840000,-150.0,0.00035753,7]
[421630141,1777999840000,-203.374975,0.00035547,7]
[421630148,1777999840000,-9752.4416872,0.00035752,2]
[421630149,1777999840000,-150.0,0.00035753,7]
[421630153,1777999840000,-150.00000001,0.00035753,7]
[421630154,1777999840000,-150.0,0.00035753,7]
[421630155,1777999840000,-1966.69440312,0.00036,120]
[421630162,1777999840000,-500.0,0.00036531,2]
[421630158,1777999840000,-1000.0,0.00036121,5]
[421630152,1777999840000,-150.0,0.00035753,7]
[421630157,1777999840000,-1000.0,0.00036121,5]
[421630156,1777999840000,-1693.61548801,0.00036098,2]
[421630160,1777999840000,-212.0,0.00036278,30]
[421630161,1777999840000,-150.0,0.00036321,7]
[421630159,1777999840000,-620.67,0.00036252,2]
[421630140,1777999840000,-203.374975,0.00035547,7]
[421630108,1777999840000,-203.374975,0.00033318,7]
[421630135,1777999840000,-110697.7154423,0.00035547,2]
[421630139,1777999840000,-151.0,0.00035547,7]
[421630107,1777999840000,-203.374975,0.00033318,7]
[421630110,1777999840000,-620.67,0.0003339,2]
[421630113,1777999840000,-176.96,0.00034116,2]
[421630111,1777999840000,-1966.69440312,0.000339,120]
[421630112,1777999840000,-1693.61548801,0.00033974,2]
[421630115,1777999840000,-212.0,0.00034278,30]
[421630114,1777999840000,-151.0,0.00034181,7]
[421630120,1777999840000,-2000.0,0.00034749,2]
[421630117,1777999840000,-620.67,0.00034344,2]
[421630119,1777999840000,-151.0,0.00034749,7]
[421630121,1777999840000,-182.494,0.00034874,40]
[421630118,1777999840000,-9752.4416872,0.00034523,2]
[421630129,1777999840000,-47179.0600833,0.00035229,2]
[421630133,1777999840000,-212.0,0.00035278,30]
[421630123,1777999840000,-1489.642,0.00034874,40]
[421630134,1777999840000,-620.67,0.00035298,2]
[421630127,1777999840000,-154.09,0.00035044,2]
[421630125,1777999840000,-205.749,0.00035,30]
[421630130,1777999840000,-151.0,0.00035229,7]
[421630128,1777999840000,-3681.0,0.00035129,3]
[421630126,1777999840000,-1966.69440312,0.00035,120]
[421630124,1777999840000,-176.96,0.0003491,2]
[421630131,1777999840000,-151.0,0.00035229,7]
[421630132,1777999840000,-8519.4070342,0.00035229,2]
[421630202,1777999841000,-150.0,0.00038023,7]
[421630199,1777999841000,-187.78006525,0.0003779,2]
[421630198,1777999841000,-11528.16401966,0.00037785,2]
[421630197,1777999841000,-150.0,0.0003774,7]
[421630193,1777999841000,-515.33100783,0.00037656,2]
[421630196,1777999841000,-325.09545774,0.0003766,2]
[421630195,1777999841000,-500.0,0.00037659,2]
[421630204,1777999841000,-155.42950694,0.00038145,14]
[421630203,1777999841000,-250.95652187,0.00038121,5]
[421630200,1777999841000,-5375.27,0.000378,7]
[421630194,1777999841000,-151.0,0.00037658,14]
[421630201,1777999841000,-332.359308,0.00037808,120]
[421630218,1777999841000,-9752.4416872,0.00038211,2]
[421630207,1777999841000,-203.374975,0.00038148,7]
[421630210,1777999841000,-203.374975,0.00038148,7]
[421630205,1777999841000,-2176.7952503,0.00038148,2]
[421630215,1777999841000,-400.66337621,0.00038173,5]
[421630214,1777999841000,-191.09474138,0.00038152,2]
[421630208,1777999841000,-276.662948,0.00038148,7]
[421630209,1777999841000,-203.374975,0.00038148,7]
[421630213,1777999841000,-1000.0,0.00038152,2]
[421630211,1777999841000,-203.374975,0.00038148,7]
[421630212,1777999841000,-1000.0,0.00038152,2]
[421630192,1777999841000,-800.57109369,0.00037656,2]
[421630216,1777999841000,-45741.3013651,0.00038197,2]
[421630206,1777999841000,-151.0,0.00038148,7]
[421630191,1777999841000,-1132.92956671,0.00037646,2]
[421630173,1777999841000,-9131.80377031,0.00036804,2]
[421630187,1777999841000,-203.374975,0.00037559,7]
[421630165,1777999841000,-651.80651073,0.00036668,5]
[421630219,1777999841000,-251.29676457,0.00038213,2]
[421630163,1777999841000,-154.58749912,0.00036531,2]
[421630171,1777999841000,-9905.5980765,0.00036749,2]
[421630169,1777999841000,-5375.27,0.000367,7]
[421630167,1777999841000,-9552.16786547,0.00036694,2]
[421630166,1777999841000,-500.0,0.00036668,5]
[421630168,1777999841000,-174.61919141,0.00036694,2]
[421630170,1777999841000,-150.0,0.00036747,7]
[421630175,1777999841000,-9752.4416872,0.00036982,2]
[421630182,1777999841000,-88163.623663,0.00037559,2]
[421630181,1777999841000,-1289.0863018,0.00037559,2]
[421630176,1777999841000,-190.53878735,0.000372,120]
[421630177,1777999841000,-181.08010149,0.00037242,2]
[421630183,1777999841000,-69095.3244254,0.00037559,2]
[421630180,1777999841000,-150.0,0.00037456,7]
[421630172,1777999841000,-11291.35719848,0.00036804,4]
[421630178,1777999841000,-212.0,0.00037278,30]
[421630174,1777999841000,-150.0,0.00036888,7]
[421630179,1777999841000,-2000.0,0.00037361,2]
[421630184,1777999841000,-151.0,0.00037559,7]
[421630186,1777999841000,-151.0,0.00037559,7]
[421630185,1777999841000,-203.374975,0.00037559,7]
[421630188,1777999841000,-203.374975,0.00037559,7]
[421630189,1777999841000,-203.374975,0.00037559,7]
[421630190,1777999841000,-150.0,0.00037573,5]
[421630164,1777999841000,-517.20772398,0.00036531,2]
[421630226,1777999841000,-467.8847743,0.00038298,2]
[421630220,1777999841000,-1693.61548801,0.00038222,2]
[421630253,1777999841000,-302.03945023,0.00038298,2]
[421630263,1777999841000,-303.28619312,0.00038298,2]
[421630252,1777999841000,-347.01202642,0.00038298,2]
[421630254,1777999841000,-871.0205263,0.00038298,2]
[421630262,1777999841000,-302.07813104,0.00038298,2]
[421630256,1777999841000,-302.38980252,0.00038298,2]
[421630261,1777999841000,-303.07816416,0.00038298,2]
[421630257,1777999841000,-386.0140826,0.00038298,2]
[421630258,1777999841000,-302.04000057,0.00038298,2]
[421630255,1777999841000,-302.06699101,0.00038298,2]
[421630260,1777999841000,-304.26442892,0.00038298,2]
[421630259,1777999841000,-455.93638816,0.00038298,2]
[421630264,1777999841000,-302.12376644,0.00038298,2]
[421630266,1777999841000,-300.0,0.00038298,2]
[421630265,1777999841000,-301.99193703,0.00038298,2]
[421630272,1777999841000,-314.61339812,0.00038298,2]
[421630268,1777999841000,-303.47627855,0.00038298,2]
[421630270,1777999841000,-349.33817425,0.00038298,2]
[421630271,1777999841000,-300.0,0.00038298,2]
[421630267,1777999841000,-609.4901988,0.00038298,2]
[421630273,1777999841000,-303.67790137,0.00038298,2]
[421630269,1777999841000,-302.97292553,0.00038298,2]
[421630274,1777999841000,-303.93044472,0.00038298,2]
[421630276,1777999841000,-302.04239253,0.00038298,2]
[421630225,1777999841000,-300.0,0.00038298,2]
[421630247,1777999841000,-303.20801264,0.00038298,2]
[421630248,1777999841000,-300.0,0.00038298,2]
[421630275,1777999841000,-481.06571265,0.00038298,2]
[421630251,1777999841000,-861.39887554,0.00038298,2]
[421630246,1777999841000,-302.10883708,0.00038298,2]
[421630227,1777999841000,-300.0,0.00038298,2]
[421630222,1777999841000,-154.09,0.00038229,2]
[421630221,1777999841000,-2000.0,0.00038224,2]
[421630224,1777999841000,-5666.4786,0.00038281,2]
[421630223,1777999841000,-288.551,0.00038281,2]
[421630229,1777999841000,-302.10915393,0.00038298,2]
[421630237,1777999841000,-302.412489,0.00038298,2]
[421630232,1777999841000,-302.03644401,0.00038298,2]
[421630238,1777999841000,-302.18184042,0.00038298,2]
[421630239,1777999841000,-300.0,0.00038298,2]
[421630230,1777999841000,-300.0,0.00038298,2]
[421630233,1777999841000,-300.0,0.00038298,2]
[421630217,1777999841000,-162.74,0.000382,30]
[421630236,1777999841000,-862.73260888,0.00038298,2]
[421630228,1777999841000,-312.47952171,0.00038298,2]
[421630250,1777999841000,-302.13510929,0.00038298,2]
[421630245,1777999841000,-301.95526024,0.00038298,2]
[421630243,1777999841000,-488.29674195,0.00038298,2]
[421630249,1777999841000,-302.01353102,0.00038298,2]
[421630244,1777999841000,-302.16840416,0.00038298,2]
[421630242,1777999841000,-300.0,0.00038298,2]
[421630240,1777999841000,-481.06571266,0.00038298,2]
[421630235,1777999841000,-302.05738169,0.00038298,2]
[421630231,1777999841000,-488.83911741,0.00038298,2]
[421630234,1777999841000,-1157.12660596,0.00038298,2]
[421630241,1777999841000,-300.0,0.00038298,2]
[421630311,1777999842000,-500.0,0.00038356,2]
[421630312,1777999842000,-566.3,0.00038356,2]
[421630319,1777999842000,-500.0,0.00038356,2]
[421630310,1777999842000,-500.0,0.00038356,2]
[421630318,1777999842000,-500.0,0.00038356,2]
[421630307,1777999842000,-500.0,0.00038356,2]
[421630309,1777999842000,-500.0,0.00038356,2]
[421630305,1777999842000,-500.0,0.00038356,2]
[421630315,1777999842000,-500.0,0.00038356,2]
[421630308,1777999842000,-500.0,0.00038356,2]
[421630302,1777999842000,-500.0,0.00038356,2]
[421630330,1777999842000,-500.0,0.00038356,2]
[421630313,1777999842000,-500.0,0.00038356,2]
[421630316,1777999842000,-500.0,0.00038356,2]
[421630314,1777999842000,-500.0,0.00038356,2]
[421630321,1777999842000,-500.0,0.00038356,2]
[421630320,1777999842000,-500.0,0.00038356,2]
[421630332,1777999842000,-507.09345854,0.00038356,2]
[421630335,1777999842000,-500.0,0.00038356,2]
[421630337,1777999842000,-500.0,0.00038356,2]
[421630323,1777999842000,-500.0,0.00038356,2]
[421630322,1777999842000,-500.0,0.00038356,2]
[421630326,1777999842000,-500.0,0.00038356,2]
[421630299,1777999842000,-500.0,0.00038356,2]
[421630317,1777999842000,-500.0,0.00038356,2]
[421630304,1777999842000,-564.88881943,0.00038356,2]
[421630294,1777999842000,-500.0,0.00038356,2]
[421630303,1777999842000,-500.0,0.00038356,2]
[421630279,1777999842000,-707.2905,0.00038346,120]
[421630278,1777999842000,-194.72792766,0.00038338,2]
[421630277,1777999842000,-300.0,0.00038298,2]
[421630280,1777999842000,-707.2905,0.00038346,120]
[421630281,1777999842000,-707.2905,0.00038346,120]
[421630283,1777999842000,-92702.00492982,0.00038356,2]
[421630282,1777999842000,-307.01808667,0.00038355,10]
[421630284,1777999842000,-4999.84105968,0.00038356,2]
[421630286,1777999842000,-500.0,0.00038356,21]
[421630287,1777999842000,-500.0,0.00038356,21]